Cogmind - Beta 13 @@@ ROGUE MODE // 2024.04.01 @ 12:14:56 Player: SonVince Result: Destroyed by B-75 Beast with Heavy Plasma Cannon Performance ------------- Evolutions (3) 1500 Regions Visited (8) 1600 Robots Destroyed (64) 320 Value Destroyed (1946) 1946 Prototype IDs (5) 100 Alien Tech Used (0) 0 Bonus (536) 536 TOTAL SCORE: 6002 Bonus ------- High Alert Combat Kills 22 Follower Combat Kills 14 Entered Garrisons 200 Aligned with FarCom 300 Cogmind --------- Core Integrity 0/700 Matter 45/300 Energy 317/360 System Corruption 22% Temperature Cool (12) Movement Treading (160) Location -7/Lower Caves Parts ------- > --- POWER (2) -------- Light Nuclear Core > --- PROPULSION (4) --- Medium Treads Medium Treads > --- UTILITY (5) ------ Compact Battery Hardened Medium Armor Plating > --- WEAPON (2) ------- Advanced Assault Cannon Enhanced Flamer > --- INVENTORY (5) ---- Particle Gun Heavy Particle Gun Autogun Peak State ------------ > --- POWER ------------ Light Ion Engine Micro Nuclear Core > --- PROPULSION ------- Aluminum Leg Aluminum Leg Aluminum Leg Carbon-fiber Leg > --- UTILITY ---------- Improved Heat Sink Coolant Injector Small Storage Unit Medium Storage Unit > --- WEAPON ----------- Minigun Advanced Assault Cannon > --- INVENTORY -------- Aluminum Leg Particle Gun Heavy Particle Gun Heavy Particle Gun Heavy Particle Cannon Heavy Particle Cannon Advanced Assault Cannon Proton Missile Launcher Proton Missile Launcher Proton Missile Launcher [Rating: 30] Favorites ----------- Power Light Nuclear Core Engine Ion Engine Power Core Light Nuclear Core Propulsion Aluminum Leg Treads Light Treads Leg Aluminum Leg Wheel Wheel Utility Small Storage Unit Device Improved Heat Sink Storage Small Storage Unit Protection Hardened Light Armor Plating Weapon Assault Rifle Energy Gun Arc Projector Energy Cannon Heavy Particle Cannon Ballistic Gun Assault Rifle Ballistic Cannon Advanced Assault Cannon Launcher Proton Missile Launcher Special Weapon Enhanced Flamer Build | -11 -10 -10 -10 -9 -8 -8 -7 -7 ------- Run | Yrd Mat Min Exi Min Mat Gar Fac Low Slots Evolved 6 | . . . . . 4 . 2 . Power 1 | . . . . . . . 1 . Propulsion 2 | . . . . . 2 . . . Utility 3 | . . . . . 2 . 1 . Weapon . | . . . . . . . . . Parts Attached 78 | 7 1 6 2 . 40 1 3 18 Power 9 | 1 1 . . . 4 . 1 2 Engine 4 | 1 . . . . 3 . . . Core 5 | . 1 . . . 1 . 1 2 Reactor . | . . . . . . . . . Propulsion 20 | 2 . 2 . . 11 1 . 4 Treads 6 | . . 2 . . 2 . . 2 Leg 11 | 2 . . . . 6 1 . 2 Wheel 3 | . . . . . 3 . . . Hover . | . . . . . . . . . Flight . | . . . . . . . . . Utility 9 | 1 . . 2 . 2 . 1 3 Device 3 | . . . . . 1 . 1 1 Storage 4 | 1 . . 2 . . . . 1 Processor . | . . . . . . . . . Hackware . | . . . . . . . . . Protection 2 | . . . . . 1 . . 1 Artifact . | . . . . . . . . . Weapon 40 | 3 . 4 . . 23 . 1 9 Energy Gun 4 | 1 . . . . 2 . . 1 Energy Cannon 4 | . . 1 . . 2 . 1 . Ballistic Gun 13 | 2 . 2 . . 5 . . 4 Ballistic Cannon 11 | . . . . . 10 . . 1 Launcher 7 | . . 1 . . 4 . . 2 Special Weapon 1 | . . . . . . . . 1 Impact Weapon . | . . . . . . . . . Slashing Weapon . | . . . . . . . . . Piercing Weapon . | . . . . . . . . . Special Melee Weapon . | . . . . . . . . . Unidentified Prototypes 3 | . . . 1 . 1 . 1 . Corrupted Parts 5 | . . . . . 1 . . 4 System Corruption 34 | . . . . . 10 . . 24 Parts Lost 28 | . . 3 . 1 12 . 2 10 Power 3 | . . . . 1 . . 1 1 Propulsion 12 | . . 2 . . 7 . . 3 Utility 4 | . . . . . 1 . . 3 Weapon 9 | . . 1 . . 4 . 1 3 Highest Loss Streak 7 | . . 2 . 1 3 . 2 7 To Critical Strikes . | . . . . . . . . . Average Slot Usage (%) 68 | . 85 75 86 91 65 90 75 43 Engine 4 | . 14 . . . 5 9 5 . Core 4 | . . 14 14 5 1 . 6 6 Treads 11 | . . 8 28 28 14 . . 7 Leg 8 | . 28 11 . . 2 36 22 4 Device 1 | . . . . . . 9 14 3 Storage 15 | . 14 14 15 28 18 18 15 6 Protection 1 | . . . . . 3 . . 3 Energy Cannon 4 | . . 4 14 14 3 . . 1 Ballistic Gun 10 | . 28 21 14 14 6 9 5 1 Ballistic Cannon 2 | . . . . . 5 9 3 . Launcher 1 | . . 1 . . . . . 4 Naked Turns 84 | . . . . . . . . 84 Heaviest Build 43 | 14 14 19 29 29 43 28 35 30 Greatest Support 62 | 20 20 42 42 42 62 45 45 56 Greatest Overweight (x) 4 | . . 4 . . 2 . 1 4 Average Overweight (x) . | . . . . . . . . . Largest Inventory Capacity 10 | 8 8 8 10 10 10 10 10 10 Average Capacity 8 | 6 8 8 8 10 10 10 10 6 Most Carried 10 | 5 6 7 8 9 10 10 10 10 Average Carried 7 | 3 4 6 7 7 8 9 10 5 Final Capacity 10 | 8 8 8 10 10 10 10 10 5 Final Carried 10 | 3 6 7 7 9 9 10 10 3 Class Distribution -------------------- 87% | Mutant 12% | Scavenger-Mutant Dominant Class ---------------- Mutant | -10/Materials Mutant | -10/Mines Mutant | -10/Exiles Mutant | -9/Mines Mutant | -8/Materials Scavenger-Mutant | -8/Garrison Mutant | -7/Factory Scavenger-Mutant | -7/Lower Caves Resources | -11 -10 -10 -10 -9 -8 -8 -7 -7 ----------- Run | Yrd Mat Min Exi Min Mat Gar Fac Low Matter Collected 1913 | 182 286 143 . 50 942 29 . 281 Remotely . | . . . . . . . . . Salvage Created 1803 | . 360 69 . 41 1146 29 . 158 Parts 119 | . 29 1 . 8 69 . . 12 Haulers Intercepted 1 | . . . . . 1 . . . Recyclers Shooed 4 | . . . . . 3 . 1 . Parts Field Recycled . | . . . . . . . . . Retrieved Matter . | . . . . . . . . . Parts Self-Destructed 9 | . . . . . . . . 9 Prevented 2 | . . . . . . . . 2 Kills | -11 -10 -10 -10 -9 -8 -8 -7 -7 ------- Run | Yrd Mat Min Exi Min Mat Gar Fac Low Combat Hostiles Destroyed 49 | . 11 3 . 3 28 1 . 3 Guns 18 | . 11 2 . 2 3 . . . Cannons 21 | . . . . 1 19 1 . . AOE 10 | . . 1 . . 6 . . 3 Classes Destroyed 12 | . 3 1 . . 6 1 . 1 Worker 7 | . . . . . 7 . . . Builder 3 | . . . . . 3 . . . Hauler 1 | . . . . . 1 . . . Recycler 1 | . . . . . 1 . . . Mechanic 1 | . . . . . 1 . . . Watcher 3 | . 2 . . . 1 . . . Swarmer 12 | . 5 . . 3 4 . . . Grunt 28 | . 6 2 . . 20 . . . Sentry 4 | . . . . . 4 . . . Hunter 3 | . . . . . . 1 . 2 Programmer 1 | . . . . . . . . 1 Assembled 1 | . . 1 . . . . . . Best Kill Streak 9 | . 3 2 . 3 9 1 . 3 Combat Bots Only 5 | . 3 2 . 3 5 1 . 3 Max Kills in Single Turn 4 | . 2 1 . 1 4 1 . 1 Gunslinging 1 | . 1 . . . . . . . Exploded 2 | . . 1 . . 2 . . 1 Melee . | . . . . . . . . . Uniques/NPCs Destroyed . | . . . . . . . . . Combat | -11 -10 -10 -10 -9 -8 -8 -7 -7 -------- Run | Yrd Mat Min Exi Min Mat Gar Fac Low Hostile Shots Fired 465 | . 35 15 . 8 233 10 12 152 Missed 130 | . 11 1 . . 63 2 3 50 Damage Taken 4957 | . 228 343 . 64 2577 123 132 1490 Core 1358 | . 57 118 . . 463 16 46 658 Absorbed by Shields . | . . . . . . . . . Core Remaining (%) 47 | 100 . . . 30 . 12 . . Volleys Fired 157 | 1 30 14 . 3 96 3 4 6 Largest 2 | 2 2 2 . 2 2 2 2 2 Hottest 135 | 40 40 50 . 100 135 73 73 62 Shots Fired 293 | 2 58 20 . 7 185 6 7 8 Gun 150 | 2 58 16 . 3 61 3 4 3 Cannon 128 | . . . . 4 118 3 3 . Launcher 15 | . . 4 . . 6 . . 5 Special . | . . . . . . . . . Kinetic 230 | 2 58 16 . 3 135 6 7 3 Thermal 48 | . . . . 4 44 . . . Explosive 6 | . . 4 . . 2 . . . Electromagnetic 9 | . . . . . 4 . . 5 Robot Hit Streak 10 | 1 7 4 . 3 10 5 2 6 Robot Miss Streak 6 | 1 6 3 . 2 5 1 5 1 Penetration Max . | . . . . . . . . . Secondary Targets 3 | . 2 . . . 1 . . . Max Gunslinging Chain 1 | . 1 . . . 1 . . . Shots Hit Robots 178 | 1 33 9 . 4 118 5 2 6 Core Hits 97 | . 19 6 . 3 62 2 . 5 Critical Kills . | . . . . . . . . . Critical Parts Destroyed 1 | . . . . . 1 . . . Critical Strikes 7 | . . . . . 6 1 . . Destroy 1 | . . . . . 1 . . . Blast 6 | . . . . . 5 1 . . Melee Attacks . | . . . . . . . . . Impact . | . . . . . . . . . Slashing . | . . . . . . . . . Piercing . | . . . . . . . . . Sneak Attacks . | . . . . . . . . . Combat Hostiles . | . . . . . . . . . Follow-up Attacks . | . . . . . . . . . Damage Inflicted 5323 | 13 403 189 . 90 4198 86 42 302 Guns 1468 | 13 403 113 . 40 828 26 16 29 Cannons 2131 | . . . . 50 1995 60 26 . Explosions 1660 | . . 76 . . 1326 . . 258 Melee . | . . . . . . . . . Ramming 64 | . . . . . 49 . . 15 Kinetic 2978 | 13 403 113 . 40 2252 86 42 29 Thermal 1289 | . . . . 50 1137 . . 102 Explosive 417 | . . 76 . . 341 . . . Electromagnetic 575 | . . . . . 419 . . 156 Impact . | . . . . . . . . . Slashing . | . . . . . . . . . Piercing . | . . . . . . . . . Highest Corruption 24 | . 2 2 2 2 11 11 . 24 Average Corruption 7 | . 2 2 2 2 10 11 . 21 Corruption Purged 3 | . . . . . . . . 3 Corruption Blocked . | . . . . . . . . . Effects 86 | . 7 11 4 7 22 6 . 29 Message Errors 22 | . 2 7 . 2 5 1 . 5 Matter Fused 26 | . 2 1 . 2 7 4 . 10 Heat Flow Errors 7 | . . 2 . . 1 . . 4 Energy Discharges 12 | . . . 1 2 3 1 . 5 Parts Rejected 1 | . . . . . 1 . . . Parts Fused 1 | . . . . . 1 . . . Data Loss (minor) 8 | . . 1 3 . 1 . . 3 Data Loss (major) 4 | . 1 . . . 2 . . 1 Misfires 1 | . . . . 1 . . . . Misdirections 1 | . . . . . 1 . . . Weapon Failures 3 | . 2 . . . . . . 1 Overload Shots . | . . . . . . . . . Overflow Damage 369 | . . . . . 369 . . . Projectiles 49 | . . . . . 49 . . . Explosions 320 | . . . . . 320 . . . Melee . | . . . . . . . . . Knockbacks 23 | . . . . . 22 1 . . Impact . | . . . . . . . . . Kinetic 20 | . . . . . 19 1 . . Secondary 3 | . . . . . 3 . . . Self-Inflicted Damage 269 | . . 16 . . 184 . . 69 Shots 9 | . . 1 . . 5 . . 3 Rammed 8 | . . . . . 6 . . 2 Targets Rammed 12 | . 1 . . . 9 . . 2 Kicked 4 | . 1 . . . 3 . . . Crushed . | . . . . . . . . . Highest Temperature 417 | . 20 263 . 100 417 . . 261 Average Temperature 100 | . 16 112 . 48 100 . . 112 Received Heat Transfer 1710 | . 66 57 . . 1323 . 81 183 Effects 5 | . . . . . 5 . . . Shutdowns 1 | . . . . . 1 . . . Interference 2 | . . . . . 2 . . . Short Circuit 1 | . . . . . 1 . . . Damage (minor) 1 | . . . . . 1 . . . Siege Activations . | . . . . . . . . . Robots Corrupted 1 | . . . . . 1 . . . Combat Hostiles . | . . . . . . . . . Parts Fried 3 | . . . . . 1 . . 2 Impact Corruptions . | . . . . . . . . . Robots Melted . | . . . . . . . . . Combat Hostiles . | . . . . . . . . . Parts Melted 1 | . . . . 1 . . . . Heat Transferred 1549 | . . . . 74 1375 . . 100 Parts Sabotaged . | . . . . . . . . . Parts Stolen . | . . . . . . . . . Parts Stripped . | . . . . . . . . . Power Chain Reactions 4 | . . . . . 1 . . 3 Alert | -11 -10 -10 -10 -9 -8 -8 -7 -7 ------- Run | Yrd Mat Min Exi Min Mat Gar Fac Low Peak Influence 454 | . 175 100 . 62 454 327 186 . Initial 297 | . . 61 . . 24 297 171 . Average 146 | . 72 48 . 36 207 311 175 . Maximum Alert Level 2 | . . . . . 2 1 . . Low Security (%) 74 | 100 100 100 . 100 56 . 100 . Level 1 23 | . . . . . 38 100 . . Level 2 2 | . . . . . 4 . . . Level 3 . | . . . . . . . . . Level 4 . | . . . . . . . . . Level 5 . | . . . . . . . . . High Security . | . . . . . . . . . Max Security . | . . . . . . . . . Squads Dispatched 10 | . 2 1 . . 7 . . . Investigation 3 | . 1 1 . . 1 . . . Extermination . | . . . . . . . . . Reinforcement 4 | . 1 . . . 3 . . . Assault . | . . . . . . . . . Garrison 3 | . . . . . 3 . . . Intercept . | . . . . . . . . . Searches Triggered . | . . . . . . . . . Construction Impeded 1 | . . . . . 1 . . . Haulers Reinforced . | . . . . . . . . . Active Scanning Responses . | . . . . . . . . . Cargo Convoy Interrupts . | . . . . . . . . . Stealth | -11 -10 -10 -10 -9 -8 -8 -7 -7 --------- Run | Yrd Mat Min Exi Min Mat Gar Fac Low Distress Signals 5 | . 1 2 . . 2 . . . Communications Jammed . | . . . . . . . . . Distress Signals . | . . . . . . . . . Times Spotted 82 | . 18 3 . 3 45 1 1 11 Peak Tracking Total 7 | . 3 2 . 3 6 1 1 7 Tactical Retreats 6 | . . . . . 4 . . 2 Traps | -11 -10 -10 -10 -9 -8 -8 -7 -7 ------- Run | Yrd Mat Min Exi Min Mat Gar Fac Low Traps Triggered 6 | . 2 . . . 1 2 1 . Indirectly . | . . . . . . . . . Trap Hack Attempts . | . . . . . . . . . Triggered . | . . . . . . . . . Disarmed . | . . . . . . . . . Reprogrammed . | . . . . . . . . . Reused . | . . . . . . . . . Traps Extracted . | . . . . . . . . . Installed . | . . . . . . . . . Triggered . | . . . . . . . . . Machines | -11 -10 -10 -10 -9 -8 -8 -7 -7 ---------- Run | Yrd Mat Min Exi Min Mat Gar Fac Low Machines Disabled 8 | . . . . . 7 . 1 . Max in Single Turn 4 | . . . . . 4 . 1 . Machines Repaired . | . . . . . . . . . Machines Dismantled . | . . . . . . . . . Machines Sabotaged . | . . . . . . . . . Overloaded Fab Kills . | . . . . . . . . . Hacking | -11 -10 -10 -10 -9 -8 -8 -7 -7 --------- Run | Yrd Mat Min Exi Min Mat Gar Fac Low Machines Accessed 2 | . 1 . . . 1 . . . Terminals 1 | . 1 . . . . . . . Fabricators . | . . . . . . . . . Repair Stations . | . . . . . . . . . Recycling Units . | . . . . . . . . . Scanalyzers . | . . . . . . . . . Garrison Access 1 | . . . . . 1 . . . Total Hacks 6 | . 5 . . . 1 . . . Successful 2 | . 1 . . . 1 . . . Failed 4 | . 4 . . . . . . . Catastrophic . | . . . . . . . . . Database Lockouts . | . . . . . . . . . Manual 1 | . . . 1 . . . . . Terminals 5 | . 5 . . . . . . . Fabricators . | . . . . . . . . . Repair Stations . | . . . . . . . . . Recycling Units . | . . . . . . . . . Scanalyzers . | . . . . . . . . . Garrison Access 1 | . . . . . 1 . . . Terminal Hacks 1 | . 1 . . . . . . . Prototype ID Bank 1 | . 1 . . . . . . . Fabricator Hacks . | . . . . . . . . . Repair Station Hacks . | . . . . . . . . . Recycling Unit Hacks . | . . . . . . . . . Scanalyzer . | . . . . . . . . . Garrison Access Hacks 1 | . . . . . 1 . . . Unlock Access 1 | . . . . . 1 . . . Unauthorized Hacks . | . . . . . . . . . Terminals . | . . . . . . . . . Fabricators . | . . . . . . . . . Repair Stations . | . . . . . . . . . Recycling Units . | . . . . . . . . . Scanalyzers . | . . . . . . . . . Garrison Access . | . . . . . . . . . Data Cores Recovered . | . . . . . . . . . Used . | . . . . . . . . . Hacking Detections 1 | . 1 . . . . . . . Full Trace Events . | . . . . . . . . . Feedback Events . | . . . . . . . . . Feedback Blocked . | . . . . . . . . . Robot Schematics Acquired . | . . . . . . . . . Robots Built . | . . . . . . . . . Authchips . | . . . . . . . . . Time . | . . . . . . . . . Total Robot Build Rating . | . . . . . . . . . Part Schematics Acquired . | . . . . . . . . . Parts Built . | . . . . . . . . . Authchips . | . . . . . . . . . Time . | . . . . . . . . . Total Part Build Rating . | . . . . . . . . . Parts Repaired . | . . . . . . . . . Time . | . . . . . . . . . Parts Recycled . | . . . . . . . . . Recycled Matter . | . . . . . . . . . Retrieved Matter . | . . . . . . . . . Retrieved Components . | . . . . . . . . . Parts Scanalyzed . | . . . . . . . . . Part Schematics Acquired . | . . . . . . . . . Parts Damaged . | . . . . . . . . . Bothacking | -11 -10 -10 -10 -9 -8 -8 -7 -7 ------------ Run | Yrd Mat Min Exi Min Mat Gar Fac Low Used RIF Installer . | . . . . . . . . . Robots Hacked . | . . . . . . . . . Non-combat . | . . . . . . . . . Combat . | . . . . . . . . . Robot Hacks Applied . | . . . . . . . . . Relay Couplers Released . | . . . . . . . . . Fabnet Peak Effective % . | . . . . . . . . . Robots Rewired . | . . . . . . . . . Allies Hacked . | . . . . . . . . . Hacks Repelled . | . . . . . . . . . Allies | -11 -10 -10 -10 -9 -8 -8 -7 -7 -------- Run | Yrd Mat Min Exi Min Mat Gar Fac Low Total Allies 1 | . . . . 1 . . . . Largest Group 1 | . . . . 1 1 . . . Highest-Rated Group 31 | . . . . 31 31 . . . Highest-Rated Ally 31 | . . . . 31 31 . . . Total Orders . | . . . . . . . . . Ally Attacks 6 | . . . . . 6 . . . Total Damage 62 | . . . . . 62 . . . Kills 2 | . . . . . 2 . . . Allies Corrupted . | . . . . . . . . . Allies Melted . | . . . . . . . . . Intel | -11 -10 -10 -10 -9 -8 -8 -7 -7 ------- Run | Yrd Mat Min Exi Min Mat Gar Fac Low Robot Analysis Total . | . . . . . . . . . Derelict Logs Recovered 2 | . . . . 1 . . . 1 Drone Launches . | . . . . . . . . . Drone Recoveries . | . . . . . . . . . Exploration | -11 -10 -10 -10 -9 -8 -8 -7 -7 ------------- Run | Yrd Mat Min Exi Min Mat Gar Fac Low Turns Passed 5233 | 75 623 518 406 334 1907 146 177 1047 Spaces Moved 2591 | 56 393 279 265 196 541 101 103 657 Core 232 | 15 . 14 . . . . . 203 Treads 1237 | . . 98 265 196 414 . . 264 Legs 1058 | 41 393 167 . . 63 101 103 190 Wheels 64 | . . . . . 64 . . . Hover . | . . . . . . . . . Flight . | . . . . . . . . . Fastest Speed 50 | 50 120 120 152 152 95 120 120 50 Average Speed 150 | 101 120 163 152 152 187 120 147 142 Slowest Speed 260 | 120 120 250 152 152 260 120 190 250 Overloaded Moves . | . . . . . . . . . Propulsion Burnouts . | . . . . . . . . . Robots Hopped . | . . . . . . . . . Cave-ins Triggered . | . . . . . . . . . Time Travels 1 | . . . 1 . . . . . Exploration Rate (%) 40 | 4 67 38 62 57 27 35 4 73 Regions Visited 8 Branch Regions 4 Pre-discovered Areas 2 | . . . . 1 . . . 1 Known Exits Taken 1 | . . . . . 1 . . . Unknown Exits Taken 6 | 1 1 1 1 1 . . 1 . Scrap Searched 2 | . . . . 1 . . . 1 Spaces Dug . | . . . . . . . . . Terrain Destroyed 107 | . . 24 . 2 70 . . 11 Melee . | . . . . . . . . . Projectile 28 | . . . . 2 26 . . . AOE 79 | . . 24 . . 44 . . 11 Terrain Rammed . | . . . . . . . . . Walls Destroyed . | . . . . . . . . . Machines Disabled . | . . . . . . . . . Actions | -11 -10 -10 -10 -9 -8 -8 -7 -7 --------- Run | Yrd Mat Min Exi Min Mat Gar Fac Low Total 3601 | 71 483 321 268 226 1237 120 120 755 Wait 697 | . 56 16 . 26 516 6 11 66 Move 2584 | 55 392 278 264 195 541 100 102 657 Hop . | . . . . . . . . . Pick Up 46 | 7 3 6 2 2 21 1 . 4 Fast Attach 23 | 3 . . . . 7 . 3 10 Attach 25 | 3 . 4 1 . 12 . . 5 Detach . | . . . . . . . . . Swap 31 | 1 1 2 1 . 22 1 . 3 Drop 17 | 1 . 1 . . 13 . . 2 Fire 157 | 1 30 14 . 3 96 3 4 6 Melee . | . . . . . . . . . Ram 5 | . . . . . 3 . . 2 Kick 4 | . 1 . . . 3 . . . Crush 3 | . . . . . 3 . . . Escape Stasis 9 | . . . . . . 9 . . Rewire . | . . . . . . . . . Trap . | . . . . . . . . . Miscellaneous . | . . . . . . . . . Route ------- -11/Scrapyard -10/Materials (discovered 3 exits: [*Mat x2] / [*Min]) -10/Mines (discovered 2 exits: [*Mat] / *Exi) -10/Exiles -9/Mines -8/Materials -8/Garrison -7/Factory -7/Lower Caves History --------- Turn | Location | Event 19 | -11/Scrapyard | Discovered new exit (range 15) 76 | -11/Scrapyard | Entered Materials 283 | -10/Materials | Discovered new exit (range 3) 305 | -10/Materials | Build established: Mutant 503 | -10/Materials | Discovered new exit (range 3) 600 | -10/Materials | Discovered new exit (range 12) 699 | -10/Materials | Entered Mines 711 | -10/Mines | Assembled infested the area 716 | -10/Mines | Assisted by a Guerilla fighting off Assembled 1006 | -10/Mines | Core integrity fell below 50% 1030 | -10/Mines | Met a Derelict shopkeep closing up shop 1138 | -10/Mines | Discovered new exit (range 7) 1206 | -10/Mines | Deemed a non-threat by the Exiles lab entrance 1207 | -10/Mines | Discovered new exit (range 5) 1217 | -10/Mines | Entered Exiles 1259 | -10/Exiles | Met 8R-AWN 1280 | -10/Exiles | Met EX-HEX 1330 | -10/Exiles | Met EX-BIN 1351 | -10/Exiles | Aligned with FarCom system 1353 | -10/Exiles | Given EX-Vault access code 1392 | -10/Exiles | Opened EX-Vault 1397 | -10/Exiles | Found Prototype Device 1398 | -10/Exiles | Identified Chronowheel 1398 | -10/Exiles | Activated Chronowheel 1398 | -10/Exiles | Spacetime reconverged on an earlier point 1427 | -10/Exiles | Warned to stay clear of 0b10 Research branches 1474 | -10/Exiles | Met EX-DEC 1526 | -10/Exiles | Discovered new exit (range 14) 1623 | -10/Exiles | Entered Mines 1629 | -9/Mines | Met a Derelict bent on vengeance 1778 | -9/Mines | Escorted by a lone wolf Derelict 1873 | -9/Mines | Learned Materials stockpile data 1944 | -9/Mines | Learned location of Storage (-8) 1948 | -9/Mines | Discovered new exit (range 5) 1957 | -9/Mines | Entered Materials 1957 | -8/Materials | Accompanied by 1 ally 1957 | -8/Materials | Evolved 4 slots: Propulsion x2, Utility x2 3325 | -8/Materials | System corruption reached 10% 3546 | -8/Materials | Core integrity fell below 50% 3554 | -8/Materials | Garrison activated, responded to threat 3782 | -8/Materials | Core integrity fell below 20% 3801 | -8/Materials | Lost 3 parts (1n2w) 3864 | -8/Materials | Identified exit to Garrison 3864 | -8/Materials | Entered Garrison 3924 | -8/Garrison | Triggered checkpoint 3991 | -8/Garrison | Discovered new exit (range 15) 4010 | -8/Garrison | Entered Factory 4010 | -7/Factory | Evolved 2 slots: Power x1, Utility x1 4071 | -7/Factory | Discovered new exit (range 11) 4187 | -7/Factory | Entered Lower Caves 4385 | -7/Lower Caves | Attracted the attention of an 0b10 outpost 4437 | -7/Lower Caves | Core integrity fell below 50% 4452 | -7/Lower Caves | Lost 7 parts (1p2n3u1w) 4493 | -7/Lower Caves | Encountered a Warlord checkpoint 4598 | -7/Lower Caves | Learned location of Zion (-6) 4618 | -7/Lower Caves | Ambushed by research squad 4624 | -7/Lower Caves | Core integrity fell below 20% 4695 | -7/Lower Caves | System corruption reached 10% 4994 | -7/Lower Caves | Build established: Scavenger-Mutant 5156 | -7/Lower Caves | Spotted B-75 Beast 5234 | -7/Lower Caves | Destroyed by B-75 Beast with Heavy Plasma Cannon Last Messages --------------- 8QGFJUIROXTFTNH80BANKUAL>JDOPZVP1ZAASO Acquired 4 matter. Acquired 3 matter. System corrupted: Energy discharge (-86). System corrupted: Matter fused (-7). System corrupted: Matter fused (-6). System corrupted: Matter fused (-8). System corrupted: Energy discharge (-72). System corrupted: Component data lost. System corrupted: Matter fused (-9). System corrupted: Heat flow error (+262). Arc Projector destroyed. JTRW>JBPB FOPBL8O DNEX JGKIAP 8&F0VEU% System corrupted: Matter fused (-5). System corrupted: Heat flow error (+244). System corrupted: Proton Missile Launcher failed to launch. System corrupted: Energy discharge (-79). Proton Missile Launcher destroyed. Acquired 6 matter. Identified Enh. Flamer. Map ----- +----------------------------------------------------+ | ????????????????????????## " "" ### | | ?????????????????????????# #### | | ????????????????????????# ### | | ???????????????????????? ### #### | | ???????????????????????? ???### ?# | | ???????????????????????? ??????### #?# | | ?????????????????????????????????## ##?# ## | | ??????????????????????????????????## ##?#### | | ???????#???????????????????????????# ###?# # | | ???????# ????????????????????????### ? ## | | ??###### ??????????????????????## ? #### | | ??? #????????????????????## #?# ???# | | ????? #??##??????????????## #?## ???# | | ??????? ##"#??????????????# #### ???# | | ????????# #?###?###??????## #### ???# | | ??# ### ### #?# ##?????## ## #?##???# | | ??# ## ### #?????# ### #??????# | | ???# # # # #?###?# ##?# #??????# | | ???# # ; ### ### ####??## #####??# | | ???# BB ;;# #??????# ##?# | | ? BB ; # ######?????## ### | | ??# ;;# ##?????????# ## | | %####### ???# # ; "??????????# ### | | ???????# ?? ## ##???? #????# ## ### | | ???????#?? # ## #????# ###### | | ?????????##### ##### @ #????# ##???# | | ?????????????# #???## #????# ##?## | | ?????????????# ##????## #??## #?# | | ?????????????#####??????### ### ##??# #?# | | ???????????????????????????###???##??## ### | | ???????????????????????????????????### ### | | ???????????????????????????????????# | | ???????????????????????????????????# ## | | ???????????????????????????????????## #?####### # | | ????????????????????????????????????##????????#### | | ?????????????????????????????????????????????????? | | ?????????????????????????????????????????????????? | | ?????????????????????????????????????????????????? | | ?????????????????????????????????????????????????? | | ?????????????????????????????????????????????????? | | ?????????????????????????????????????????????????? | | ?????????????????????????????????????????????????? | | ?????????????????????????????????????????????????? | | ?????????????????????????????????????????????????? | | ?????????????????????????????????????????????????? | | ?????????????????????????????????????????????????? | | ?????????????????????????????????????????????????? | | ?????????????????????????????????????????????????? | | ?????????????????????????????????????????????????? | | ?????????????????????????????????????????????????? | +----------------------------------------------------+ Best States ------------- Heat Dissipation 48 Coolant Potential 65 Energy Generation 20 Energy Capacity 360 Matter Stores 300 Matter Capacity 300 Sight Range 16 Terrain Scan Density 10 Armor Coverage 225 Evasion (%) 55 Recoil Reduction 3 Item Schematics ----------------- None Robot Schematics ------------------ None Fabricated ------------ Nothing Alien Tech Used ----------------- None Achievements -------------- I Survived The Infestation System Compromised Troublemaker Challenges ------------ None Game ------ Seed NovaGravitySpear Manual? 0 Play Time 00:51:55 Cumulative 5.6 hours Start 2024.04.01 @ 11:22:27 End 2024.04.01 @ 12:14:56 Sessions 1 Manual Loads 0 Difficulty Rogue Special Mode None Game No. 13 Rogue 13 Adventurer 0 Explorer 0 Win Type - Total 0 Types 0/0/0/0/0/0/0/0/0 Lore% 6 Gallery% 10 Achievement% 12 Wizard Run 0 Options --------- Layout 0 ASCII 0 Keyboard 0 Movement Mouse Keybinds 0 Fullscreen 1 Font 24/Smallcaps Map View 56x25 Zoom Use 85% Tactical HUD 0 Map Filters NONE Filters NONE Steam 1 RUN: 2790dd64-0f8e-4cea-a11a-53be4143c815